lending/lending_fUSD_20240703
["ID","MTS","AMOUNT","RATE_DAILY","PERIOD"]
[331015023,1720008661518,-500.0,0.00021917,4]
[331015024,1720008661528,-670.35,0.00021917,4]
[331015025,1720008661537,-500.0,0.00021917,4]
[331015026,1720008661547,-500.0,0.00021917,4]
[331015027,1720008661557,-670.35,0.00021917,4]
[331015028,1720008661567,-670.35,0.00021917,4]
[331015029,1720008661577,-670.35,0.00021917,4]
[331015030,1720008661586,-670.35,0.00021917,4]
[331015031,1720008661596,-500.0,0.00021917,4]
[331015032,1720008661606,-670.35,0.00021917,4]
[331015033,1720008661615,-500.0,0.00021917,4]
[331015034,1720008661624,-509.53,0.00021917,4]
[331015035,1720008661635,-503.45346853,0.00021917,4]
[331015036,1720008661644,-670.35,0.00021917,4]
[331015037,1720008661654,-670.35,0.00021917,4]
[331015038,1720008661663,-670.35,0.00021917,4]
[331015039,1720008661672,-670.36856998,0.00021917,4]
[331015040,1720008661682,-500.0,0.00021917,4]
[331015041,1720008661691,-500.0,0.00021917,4]
[331015042,1720008661700,-500.0,0.00021917,4]
[331015043,1720008661710,-500.0,0.00021917,4]
[331015044,1720008661719,-500.0,0.00021917,4]
[331015045,1720008661729,-500.0,0.00021917,4]
[331015046,1720008661739,-500.0,0.00021917,4]
[331015047,1720008661748,-502.93114435,0.00021917,4]
[331015048,1720008661758,-500.0,0.00021917,4]
[331015049,1720008661768,-500.0,0.00021917,4]
[331015050,1720008661777,-500.0,0.00021917,4]
[331015051,1720008661787,-500.0,0.00021917,4]
[331015052,1720008661796,-500.0,0.00021917,4]
[331015053,1720008661806,-500.0,0.00021917,4]
[331015054,1720008661816,-501.84630734,0.00021917,4]
[331015055,1720008661825,-500.0,0.00021917,4]
[331015056,1720008661838,-500.0,0.00021917,4]
[331015057,1720008661849,-500.0,0.00021917,4]
[331015058,1720008661859,-500.0,0.00021917,4]
[331015059,1720008661868,-502.42333485,0.00021917,4]
[331015060,1720008661879,-501.82216736,0.00021917,4]
[331015061,1720008661890,-500.0,0.00021917,4]
[331015062,1720008661900,-500.0,0.00021917,4]
[331015063,1720008661909,-500.0,0.00021917,4]
[331015064,1720008661924,-500.0,0.00021917,4]
[331015065,1720008661935,-500.0,0.00021917,4]
[331015066,1720008661944,-500.0,0.00021917,4]
[331015067,1720008661953,-476.70221275,0.00021917,4]
[331015068,1720008661963,-500.0,0.00021917,4]
[331015069,1720008661973,-500.0,0.00021917,4]
[331015070,1720008661983,-247.95046545,0.00021917,4]
[331015071,1720008661992,-500.0,0.00021917,4]
[331015072,1720008662002,-500.0,0.00021917,4]
[331015073,1720008662013,-500.0,0.00021917,4]
[331015074,1720008662023,-500.0,0.00021917,4]
[331015075,1720008662033,-500.0,0.00021917,4]
[331015076,1720008662042,-500.0,0.00021917,4]
[331015077,1720008662051,-500.0,0.00021917,4]
[331015078,1720008662061,-306.10633466,0.00021917,4]
[331015079,1720008662070,-500.0,0.00021917,4]
[331015080,1720008662079,-201.35,0.00021917,4]
[331015081,1720008662089,-500.0,0.00021917,4]
[331015082,1720008662098,-503.30498446,0.00021917,4]
[331015083,1720008662108,-2000.0,0.00021917,4]
[331015084,1720008662117,-2000.0,0.00021917,4]
[331015085,1720008662128,-501.80215369,0.00021917,4]
[331015086,1720008662139,-151.0,0.00021917,2]
[331015087,1720008662148,-151.0,0.00021917,2]
[331015088,1720008662158,-170.947771,0.00021917,2]
[331015089,1720008662168,-500.0,0.00021917,4]
[331015090,1720008662178,-500.0,0.00021917,4]
[331015091,1720008662187,-500.0,0.00021917,4]
[331015092,1720008662197,-500.0,0.00021917,4]
[331015093,1720008662207,-151.0,0.00021917,2]
[331015094,1720008662216,-528.95978949,0.00021917,4]
[331015095,1720008662226,-500.0,0.00021917,4]
[331015096,1720008662236,-593.87,0.00021917,4]
[331015097,1720008662245,-500.0,0.00021917,4]
[331015098,1720008662255,-151.0,0.00021917,2]
[331015099,1720008662265,-593.87,0.00021917,4]
[331015100,1720008662275,-593.87,0.00021917,4]
[331015101,1720008662285,-593.87,0.00021917,4]
[331015102,1720008662295,-593.87,0.00021917,4]
[331015103,1720008662304,-593.87,0.00021917,4]
[331015104,1720008662313,-593.87,0.00021917,4]
[331015105,1720008662323,-500.0,0.00021917,4]
[331015106,1720008662332,-593.87,0.00021917,4]
[331015107,1720008662342,-500.0,0.00021917,4]
[331015108,1720008662352,-593.87,0.00021917,4]
[331015109,1720008662361,-500.0,0.00021917,4]
[331015110,1720008662372,-593.87,0.00021917,4]
[331015111,1720008662382,-500.0,0.00021917,4]
[331015112,1720008662392,-151.0,0.00021917,2]
[331015113,1720008662401,-500.0,0.00021917,4]
[331015114,1720008662411,-500.0,0.00021917,4]
[331015115,1720008662421,-593.87,0.00021917,4]
[331015116,1720008662431,-502.91612378,0.00021917,4]
[331015117,1720008662441,-500.0,0.00021917,4]
[331015118,1720008662451,-593.87,0.00021917,4]
[331015119,1720008662461,-151.0,0.00021917,2]
[331015120,1720008662471,-500.0,0.00021917,4]
[331015121,1720008662481,-593.87,0.00021917,4]
[331015122,1720008662491,-151.0,0.00021917,2]
[331015123,1720008662501,-500.0,0.00021917,4]
[331015124,1720008662511,-593.87,0.00021917,4]
[331015125,1720008662521,-500.0,0.00021917,4]
[331015126,1720008662531,-593.87,0.00021917,4]
[331015127,1720008662540,-280.69776903,0.00021917,2]
[331015128,1720008662550,-500.0,0.00021917,4]
[331015129,1720008662559,-500.0,0.00021917,4]
[331015130,1720008662569,-593.87,0.00021917,4]
[331015131,1720008662578,-500.0,0.00021917,4]
[331015132,1720008662587,-593.87,0.00021917,4]
[331015133,1720008662596,-500.0,0.00021917,4]
[331015134,1720008662609,-500.0,0.00021917,4]
[331015135,1720008662619,-593.87,0.00021917,4]
[331015136,1720008662628,-500.0,0.00021917,4]
[331015137,1720008662638,-593.87,0.00021917,4]
[331015138,1720008662647,-500.0,0.00021917,4]
[331015139,1720008662657,-500.0,0.00021917,4]
[331015140,1720008662667,-593.87,0.00021917,4]
[331015141,1720008662677,-500.0,0.00021917,4]
[331015142,1720008662686,-500.0,0.00021917,4]
[331015143,1720008662696,-500.0,0.00021917,4]
[331015144,1720008662705,-500.0,0.00021917,4]
[331015145,1720008662714,-593.87,0.00021917,4]
[331015146,1720008662724,-593.87,0.00021917,4]
[331015147,1720008662734,-500.0,0.00021917,4]
[331015148,1720008662743,-593.87,0.00021917,4]
[331015149,1720008662753,-500.0,0.00021917,4]
[331015150,1720008662763,-594.08042051,0.00021917,4]
[331015151,1720008662773,-500.0,0.00021917,4]
[331015152,1720008662782,-500.0,0.00021917,4]
[331015153,1720008662792,-500.0,0.00021917,4]
[331015154,1720008662801,-500.0,0.00021917,4]
[331015155,1720008662811,-500.0,0.00021917,4]
[331015156,1720008662820,-500.0,0.00021917,4]
[331015157,1720008662830,-500.0,0.00021917,4]
[331015158,1720008662841,-500.0,0.00021917,4]
[331015159,1720008662854,-500.0,0.00021917,4]
[331015160,1720008662863,-500.0,0.00021917,4]
[331015161,1720008662873,-500.0,0.00021917,4]
[331015162,1720008662883,-151.0,0.00021917,2]
[331015163,1720008662893,-500.0,0.00021917,4]
[331015164,1720008662903,-500.0,0.00021917,4]
[331015165,1720008662912,-500.0,0.00021917,4]
[331015166,1720008662923,-503.59009134,0.00021917,4]
[331015167,1720008662933,-500.0,0.00021917,4]
[331015168,1720008662942,-440.73476055,0.00021917,4]
[331015169,1720008662952,-540.93,0.00021917,4]
[331015170,1720008662962,-540.93,0.00021917,4]
[331015171,1720008662971,-500.0,0.00021917,4]
[331015172,1720008662981,-540.93,0.00021917,4]
[331015173,1720008662991,-500.0,0.00021917,4]
[331015174,1720008663001,-500.0,0.00021917,4]
[331015175,1720008663011,-540.93,0.00021917,4]
[331015176,1720008663020,-500.0,0.00021917,4]
[331015177,1720008663030,-500.0,0.00021917,4]
[331015178,1720008663039,-540.93,0.00021917,4]
[331015179,1720008663048,-500.0,0.00021917,4]
[331015180,1720008663058,-500.0,0.00021917,4]
[331015181,1720008663067,-500.0,0.00021917,4]
[331015182,1720008663077,-500.0,0.00021917,4]
[331015183,1720008663086,-540.93,0.00021917,4]
[331015184,1720008663095,-500.0,0.00021917,4]
[331015185,1720008663104,-500.0,0.00021917,4]
[331015186,1720008663114,-397.10411451,0.00021917,4]
[331015187,1720008663123,-500.0,0.00021917,4]
[331015188,1720008663134,-500.0,0.00021917,4]
[331015189,1720008663144,-540.93,0.00021917,4]
[331015190,1720008663155,-500.0,0.00021917,4]
[331015191,1720008663164,-540.93,0.00021917,4]
[331015192,1720008663173,-500.0,0.00021917,4]
[331015193,1720008663182,-500.0,0.00021917,4]
[331015194,1720008663192,-500.0,0.00021917,4]
[331015195,1720008663201,-500.0,0.00021917,4]
[331015196,1720008663210,-540.93,0.00021917,4]
[331015197,1720008663219,-500.0,0.00021917,4]
[331015198,1720008663229,-500.0,0.00021917,4]
[331015199,1720008663238,-500.0,0.00021917,4]
[331015200,1720008663248,-500.0,0.00021917,4]
[331015201,1720008663257,-540.93,0.00021917,4]
[331015202,1720008663266,-500.0,0.00021917,4]
[331015203,1720008663275,-500.0,0.00021917,4]
[331015204,1720008663284,-500.0,0.00021917,4]
[331015205,1720008663293,-500.0,0.00021917,4]
[331015206,1720008663303,-500.0,0.00021917,4]
[331015207,1720008663312,-500.0,0.00021917,4]
[331015208,1720008663321,-500.0,0.00021917,4]
[331015209,1720008663331,-500.0,0.00021917,4]
[331015210,1720008663341,-540.93,0.00021917,4]
[331015211,1720008663351,-500.0,0.00021917,4]
[331015212,1720008663361,-500.0,0.00021917,4]
[331015213,1720008663371,-212.94035962,0.00021917,4]
[331015214,1720008663379,-500.0,0.00021917,4]
[331015215,1720008663392,-500.0,0.00021917,4]
[331015216,1720008663405,-540.93,0.00021917,4]
[331015217,1720008663417,-500.0,0.00021917,4]
[331015218,1720008663427,-500.0,0.00021917,4]
[331015219,1720008663437,-540.93,0.00021917,4]
[331015220,1720008663449,-500.0,0.00021917,4]
[331015221,1720008663459,-500.0,0.00021917,4]
[331015222,1720008663469,-500.0,0.00021917,4]
[331015223,1720008663479,-500.0,0.00021917,4]
[331015224,1720008663489,-500.0,0.00021917,4]
[331015225,1720008663661,-500.0,0.00021917,4]
[331015226,1720008663671,-500.0,0.00021917,4]
[331015227,1720008663681,-500.0,0.00021917,4]
[331015228,1720008663691,-500.0,0.00021917,4]
[331015229,1720008663700,-500.0,0.00021917,4]
[331015230,1720008663710,-500.0,0.00021917,4]
[331015231,1720008663720,-500.0,0.00021917,4]
[331015232,1720008663729,-540.93,0.00021917,4]
[331015233,1720008663738,-500.0,0.00021917,4]
[331015234,1720008663747,-500.0,0.00021917,4]
[331015235,1720008663756,-500.0,0.00021917,4]
[331015236,1720008663765,-500.0,0.00021917,4]
[331015237,1720008663774,-500.0,0.00021917,4]
[331015238,1720008663783,-498.58736543,0.00021917,4]
[331015239,1720008663793,-500.0,0.00021917,4]
[331015240,1720008663803,-500.0,0.00021917,4]
[331015241,1720008663812,-540.93,0.00021917,4]
[331015242,1720008663822,-500.0,0.00021917,4]
[331015243,1720008663831,-500.0,0.00021917,4]
[331015244,1720008663845,-500.0,0.00021917,4]
[331015245,1720008663855,-500.0,0.00021917,4]
[331015246,1720008663864,-500.0,0.00021917,4]
[331015247,1720008663873,-500.0,0.00021917,4]
[331015248,1720008663887,-500.0,0.00021917,4]
[331015249,1720008663896,-540.93,0.00021917,4]
[331015250,1720008663906,-500.0,0.00021917,4]
[331015251,1720008663919,-277.96,0.00021917,4]
[331015252,1720008663934,-540.93,0.00021917,4]
[331015253,1720008663949,-540.93,0.00021917,4]
[331015254,1720008663959,-502.92767327,0.00021917,4]
[331015255,1720008663968,-500.0,0.00021917,4]
[331015256,1720008663978,-500.0,0.00021917,4]
[331015257,1720008663988,-540.93,0.00021917,4]
[331015258,1720008663999,-501.52178367,0.00021917,4]
[331015259,1720008664009,-503.81475866,0.00021917,4]
[331015260,1720008664019,-540.93,0.00021917,4]
[331015261,1720008664030,-540.93,0.00021917,4]
[331015262,1720008664040,-500.0,0.00021917,4]
[331015263,1720008664051,-500.0,0.00021917,4]
[331015264,1720008664061,-540.93,0.00021917,4]
[331015265,1720008664071,-500.0,0.00021917,4]
[331015266,1720008664081,-500.0,0.00021917,4]
[331015267,1720008664090,-500.0,0.00021917,4]
[331015268,1720008664101,-500.0,0.00021917,4]
[331015269,1720008664112,-500.0,0.00021917,4]
[331015270,1720008664122,-503.78681411,0.00021917,4]
[331015271,1720008664138,-500.0,0.00021917,4]
[331015272,1720008664151,-500.0,0.00021917,4]
[331015273,1720008664162,-540.93,0.00021917,4]
[331015274,1720008664173,-500.0,0.00021917,4]
[331015275,1720008664183,-500.0,0.00021917,4]
[331015276,1720008664193,-500.0,0.00021917,4]
[331015277,1720008664203,-500.0,0.00021917,4]
[331015278,1720008664213,-500.0,0.00021917,4]
[331015279,1720008664223,-47.75420054,0.00021917,4]
[331015280,1720008664548,-452.24579946,0.00021917,4]
[331015281,1720008664558,-500.0,0.00021917,4]
[331015282,1720008664567,-540.95073762,0.00021917,4]
[331015283,1720008664578,-165.24,0.00021917,4]
[331015284,1720008664588,-500.0,0.00021917,4]
[331015285,1720008664598,-500.0,0.00021917,4]
[331015286,1720008664607,-500.0,0.00021917,4]
[331015287,1720008664617,-500.0,0.00021917,4]
[331015288,1720008664627,-500.0,0.00021917,4]
[331015289,1720008664640,-500.0,0.00021917,4]
[331015290,1720008664649,-500.0,0.00021917,4]
[331015291,1720008664659,-500.0,0.00021917,4]
[331015292,1720008664669,-500.0,0.00021917,4]
[331015293,1720008664678,-392.06,0.00021917,4]
[331015294,1720008664688,-500.0,0.00021917,4]
[331015295,1720008664698,-500.0,0.00021917,4]
[331015296,1720008664707,-500.0,0.00021917,4]
[331015297,1720008664717,-519.53,0.00021917,4]
[331015298,1720008664729,-457.08435226,0.00021917,4]
[331015299,1720008664753,-42.91564774,0.00021917,4]
[331015300,1720008664763,-500.0,0.00021917,4]
[331015301,1720008664773,-500.0,0.00021917,4]
[331015302,1720008664783,-214.44781226,0.00021917,4]
[331015303,1720008664797,-285.55218774,0.00021917,4]
[331015304,1720008664807,-500.0,0.00021917,4]
[331015305,1720008664816,-500.0,0.00021917,4]
[331015306,1720008664826,-1976.89033125,0.00021917,4]
[331015307,1720008664840,-260.65966875,0.00021917,4]
[331015308,1720008664849,-41.64033125,0.00021917,4]
[331015309,1720008665712,-2195.90966875,0.00021917,4]
[331015310,1720008665722,-2237.55,0.00021917,4]
[331015311,1720008665731,-1145.72061186,0.00021917,4]
[331015312,1720008665744,-579.35,0.00021917,4]
[331015313,1720008665755,-512.47938814,0.00021917,4]
[331015314,1720008665765,-2237.55,0.00021917,4]
[331015315,1720008665775,-463.22564024,0.00021917,4]
[331015316,1720008665787,-36.77435976,0.00021917,4]
[331015317,1720008665796,-503.69613397,0.00021917,4]
[331015318,1720008665805,-500.0,0.00021917,4]
[331015319,1720008665815,-500.0,0.00021917,4]
[331015320,1720008665824,-127.55247735,0.00021917,4]
[331015321,1720008666500,-372.44752265,0.00021917,4]
[331015322,1720008666509,-2237.55,0.00021917,4]
[331015323,1720008666518,-50.93251473,0.00021917,2]
[331015324,1720008666560,-100.06748527,0.00021917,2]
[331015325,1720008666570,-500.0,0.00021917,4]
[331015326,1720008666579,-500.0,0.00021917,4]
[331015327,1720008666588,-151.0,0.00021917,2]
[331015328,1720008666598,-500.0,0.00021917,4]
[331015329,1720008666607,-2237.55,0.00021917,4]
[331015330,1720008666616,-501.13919189,0.00021917,4]
[331015331,1720008666625,-500.0,0.00021917,2]
[331015332,1720008666638,-2237.55,0.00021917,4]
[331015333,1720008666647,-2237.55,0.00021917,4]
[331015334,1720008666656,-500.0,0.00021917,4]
[331015335,1720008666666,-222.181621,0.00021917,2]
[331015336,1720008666675,-500.0,0.00021917,4]
[331015337,1720008666684,-500.0,0.00021917,4]
[331015338,1720008666693,-500.0,0.00021917,4]
[331015339,1720008666702,-250.32337286,0.00021917,4]
[331015340,1720008666728,-1987.22662714,0.00021917,4]
[331015341,1720008666737,-500.0,0.00021917,4]
[331015342,1720008666746,-312.98998724,0.00021917,4]
[331015343,1720008666771,-187.01001276,0.00021917,4]
[331015344,1720008666780,-275.42342822,0.00021917,4]
[331015345,1720008666791,-224.57657178,0.00021917,4]
[331015346,1720008666801,-500.0,0.00021917,4]
[331015347,1720008666810,-500.0,0.00021917,4]
[331015348,1720008666819,-500.0,0.00021917,4]
[331015349,1720008666828,-500.0,0.00021917,4]
[331015350,1720008666841,-500.0,0.00021917,4]
[331015351,1720008666853,-500.0,0.00021917,4]
[331015352,1720008666863,-500.0,0.00021917,4]
[331015353,1720008666872,-500.0,0.00021917,4]
[331015354,1720008666882,-2237.55,0.00021917,4]
[331015355,1720008666895,-500.0,0.00021917,4]
[331015356,1720008666905,-500.0,0.00021917,4]
[331015357,1720008666916,-2237.55,0.00021917,4]
[331015358,1720008666927,-500.0,0.00021917,4]
[331015359,1720008666938,-501.26,0.00021917,4]
[331015360,1720008666949,-513.93,0.00021917,4]
[331015361,1720008666959,-500.0,0.00021917,4]
[331015362,1720008666968,-400.50203675,0.00021917,4]
[331015363,1720008666997,-99.49796325,0.00021917,4]
[331015364,1720008667006,-161.36351529,0.00021917,4]
[331015365,1720008667018,-343.50709253,0.00021917,4]
[331015366,1720008667028,-2237.55,0.00021917,4]
[331015367,1720008667038,-2237.55,0.00021917,4]
[331015368,1720008667047,-500.0,0.00021917,4]
[331015369,1720008667056,-500.0,0.00021917,4]
[331015370,1720008667067,-2237.55,0.00021917,4]
[331015371,1720008667078,-12.30868345,0.00021917,4]
[331015372,1720008667098,-487.69131655,0.00021917,4]
[331015373,1720008667107,-500.0,0.00021917,4]
[331015374,1720008667116,-258.89768749,0.00021917,4]
[331015375,1720008667131,-241.10231251,0.00021917,4]
[331015376,1720008667144,-500.0,0.00021917,4]
[331015377,1720008667153,-500.0,0.00021917,4]
[331015378,1720008667162,-2237.55,0.00021917,4]
[331015379,1720008667171,-384.68980473,0.00021917,4]
[331015380,1720008667185,-115.31019527,0.00021917,4]
[331015381,1720008667193,-393.18980473,0.00021917,4]
[331015382,1720008667210,-106.81019527,0.00021917,4]
[331015383,1720008667219,-350.74451041,0.00021917,4]
[331015384,1720008667238,-149.25548959,0.00021917,4]
[331015385,1720008667247,-500.0,0.00021917,4]
[331015386,1720008667256,-508.96,0.00021917,4]
[331015387,1720008667266,-190.02658933,0.00021917,4]
[331015388,1720008667279,-114.15854257,0.00021917,4]
[331015389,1720008667288,-241.65612361,0.00021917,4]
[331015392,1720009100376,10754.56656218,0.00026,120]
[331015416,1720009832077,-450.0,0.00013502,2]
[331015417,1720009832086,-473.0272,0.0001357,2]
[331015418,1720009832095,-12323.92733222,0.0001367,2]
[331015419,1720009832107,-782.01656778,0.0001367,2]
[331015420,1720009832116,-258.764,0.00013899,2]
[331015421,1720009832125,-804.1102516,0.00013899,2]
[331015422,1720009832135,-150.0,0.00013998,2]
[331015423,1720009832144,-727.79116719,0.00013999,2]
[331015424,1720009832163,-328.885,0.00013999,2]
[331015425,1720009832183,-2605.7965384,0.00013999,2]
[331015426,1720009832198,-774.9999974,0.00013999,2]
[331015427,1720009832228,-321434.3892734,0.00013999,2]
[331015428,1720009832240,-3545.23594935,0.00013999,2]
[331015429,1720009832255,-139794.75021085,0.00013999,2]
[331015430,1720009832265,-166.94286736,0.0001458,2]
[331015431,1720009832275,-268.95343545,0.0001468,2]
[331015432,1720009832285,-3028.31,0.00015286,2]
[331015433,1720009832295,-180.0,0.00015286,2]
[331015434,1720009832304,-15427.22902033,0.00015399,2]
[331015435,1720009832313,-268.95343545,0.00015493,2]
[331015436,1720009832322,-268.95343545,0.00016307,2]
[331015437,1720009832332,-302.045,0.00016439,7]
[331015438,1720009832341,-268.95343545,0.0001712,2]
[331015439,1720009832350,-440.7,0.00017189,2]
[331015440,1720009832359,-150.0,0.00017432,2]
[331015442,1720009832369,-3026.21301367,0.00017889,2]
[331015444,1720009832379,-2375.00109298,0.00017925,2]
[331015446,1720009832388,-268.95343545,0.00017933,2]
[331015448,1720009832397,-2375.18638309,0.00017999,2]
[331015449,1720009832406,-268.95343545,0.00018747,2]
[331015452,1720009832414,-193.58819095,0.00018759,2]
[331015455,1720009832424,-474.74245113,0.00018864,2]
[331015457,1720009832433,-216.26835515,0.00018899,2]
[331015459,1720009832442,-155.36234243,0.00018899,2]
[331015460,1720009832450,-193.32292639,0.00018899,2]
[331015462,1720009832459,-208.23342565,0.00018899,2]
[331015464,1720009832469,-159.72076583,0.00018899,2]
[331015465,1720009832478,-151.41,0.000189,2]
[331015466,1720009832487,-227.12084219,0.00018999,2]
[331015467,1720009832497,-1250.0,0.00019,2]
[331015468,1720009832506,-250.0,0.00019038,2]
[331015469,1720009832514,-155.0,0.00019069,2]
[331015470,1720009832523,-626.98777792,0.00019177,2]
[331015471,1720009832532,-169.27,0.00019181,2]
[331015472,1720009832542,-250.0,0.00019182,2]
[331015473,1720009832551,-161.37,0.000192,2]
[331015474,1720009832560,-656.62,0.000194,2]
[331015475,1720009832570,-250.0,0.00019453,2]
[331015476,1720009832580,-440.7,0.00019453,2]
[331015477,1720009832590,-161.37,0.00019534,2]
[331015478,1720009832599,-305.13007106,0.00019548,2]
[331015479,1720009832609,-268.95343545,0.0001956,2]
[331015480,1720009832618,-2050.7,0.000196,2]
[331015481,1720009832627,-18174.46,0.00019693,2]
[331015482,1720009832637,-3236.01137135,0.00019725,2]
[331015483,1720009832646,-161.37,0.00019867,2]
[331015484,1720009832656,-528.7132346,0.00019899,2]
[331015485,1720009832665,-169.46,0.00020095,2]
[331015486,1720009832674,-1000.0,0.00020164,2]
[331015487,1720009832683,-161.37,0.00020201,2]
[331015488,1720009832692,-268.95343545,0.00020373,2]
[331015489,1720009832702,-150.0,0.00020521,2]
[331015490,1720009832711,-306.35,0.00020521,2]
[331015491,1720009832721,-709.66,0.00020521,2]
[331015492,1720009832731,-150.0,0.00020521,2]
[331015493,1720009832741,-150.0,0.00020521,2]
[331015494,1720009832751,-164.85,0.00020521,2]
[331015495,1720009832760,-528.42,0.00020521,2]
[331015496,1720009832769,-150.0,0.00020521,2]
[331015497,1720009832778,-301.55,0.00020521,2]
[331015498,1720009832787,-318.6,0.00020521,2]
[331015499,1720009832799,-528.42,0.00020521,2]
[331015500,1720009832808,-300.46,0.00020521,2]
[331015501,1720009832817,-150.0,0.00020521,2]
[331015502,1720009832827,-150.0,0.00020521,2]
[331015503,1720009832837,-150.0,0.00020521,2]
[331015504,1720009832847,-164.85,0.00020521,2]
[331015505,1720009832856,-179.23,0.00020821,2]
[331015506,1720009832866,-1300.0,0.00021,2]
[331015507,1720009832875,-268.95343545,0.00021187,2]
[331015508,1720009832884,-154.77233767,0.00021205,2]
[331015509,1720009832893,-150.0,0.00021342,2]
[331015510,1720009832903,-164.85,0.00021342,2]
[331015511,1720009832912,-528.42,0.00021342,2]
[331015512,1720009832921,-150.0,0.00021342,2]
[331015513,1720009832931,-150.0,0.00021342,2]
[331015514,1720009832940,-150.0,0.00021342,2]
[331015515,1720009832950,-150.0,0.00021342,2]
[331015516,1720009832959,-528.42,0.00021342,2]
[331015517,1720009832968,-150.0,0.00021342,2]
[331015518,1720009832978,-150.0,0.00021342,2]
[331015519,1720009832987,-528.42,0.00021342,2]
[331015520,1720009832996,-321.32,0.00021342,2]
[331015521,1720009833006,-528.42,0.00021342,2]
[331015522,1720009833015,-150.0,0.00021342,2]
[331015523,1720009833025,-158.24,0.00021342,2]
[331015524,1720009833034,-528.42,0.00021342,2]
[331015525,1720009833044,-528.42,0.00021342,2]
[331015526,1720009833054,-528.42,0.00021342,2]
[331015527,1720009833063,-528.26,0.00021342,2]
[331015528,1720009833072,-800.0,0.000214,7]
[331015529,1720009833082,-1600.0,0.000215,7]
[331015530,1720009833091,-159.00626312,0.00021502,2]
[331015531,1720009833102,-255.36423436,0.00021507,2]
[331015532,1720009833111,-255.36423436,0.00021589,2]
[331015533,1720009833121,-2400.0,0.000216,7]
[331015534,1720009833130,-1000.0,0.000216,2]
[331015535,1720009833140,-1000.0,0.000216,2]
[331015536,1720009833314,-151.64167201,0.00021623,2]
[331015537,1720009833324,-160.49237674,0.00021688,2]
[331015538,1720009833333,-255.36423436,0.00021699,2]
[331015539,1720009833343,-3200.0,0.000217,7]
[331015540,1720009833352,-440.7,0.00021717,2]
[331015541,1720009833362,-500.0,0.00021741,2]
[331015542,1720009833371,-500.0,0.00021742,2]
[331015543,1720009833380,-500.0,0.00021742,2]
[331015544,1720009833388,-321.82876163,0.00021748,10]
[331015549,1720009838038,-295.39517016,0.00018899,2]
[331015553,1720009838051,-1.84957798,0.00018899,2]
[331015556,1720009838060,-155.11166829,0.00019451,2]
[331015559,1720009838069,-1178.17123837,0.00021748,10]
[331015561,1720009838078,-255.36423436,0.00021781,2]
[331015562,1720009838088,-404.37984504,0.000218,7]
[331015563,1720009838100,-3411.68718184,0.000218,7]
[331015564,1720009838127,-183.93297312,0.000218,7]
[331015565,1720009838137,-306.24039448,0.00021817,2]
[331015566,1720009838186,-7193.75960552,0.00021817,2]
[331015567,1720009838200,-153.18461084,0.00021817,2]
[331015568,1720009838210,-167.03720228,0.00021817,2]
[331015569,1720009838220,-872.6205669,0.00021817,2]
[331015570,1720009838230,-656.62,0.00021825,2]
[331015571,1720009838241,-327.27195084,0.00021847,2]